bitfinex-derivatives/quotes_BTCF0:USTF0_20250620
["timestamp","ask_amount","ask_price","bid_price","bid_amount"]
[1750450003585,1.00918705,103670.0,103660.0,1.05170528]
[1750450003983,0.64838705,103670.0,103660.0,1.41250528]
[1750450004684,0.43054956,103670.0,103660.0,1.41250528]
[1750450004885,0.62345346,103670.0,103660.0,1.41250528]
[1750450005277,0.62345346,103670.0,103660.0,1.26162528]
[1750450006188,0.58981167,103670.0,103660.0,1.26162528]
[1750450007183,0.95061167,103670.0,103660.0,0.25274661]
[1750450007683,0.95061167,103670.0,103660.0,0.25234661]
[1750450007884,0.95061167,103670.0,103660.0,0.23516393]
[1750450008100,0.95061167,103670.0,103660.0,0.04224133]
[1750450008284,0.95061167,103670.0,103660.0,0.23516393]
[1750450008487,0.36634932,103690.0,103680.0,0.1928854]
[1750450008790,0.26991212,103690.0,103680.0,0.5536854]
[1750450008984,0.66681989,103690.0,103680.0,0.5840854]
[1750450009386,0.66681989,103690.0,103680.0,0.2232854]
[1750450009692,0.66681989,103690.0,103680.0,0.2242854]
[1750450010091,0.66681989,103690.0,103680.0,0.2262854]
[1750450010591,0.66681989,103690.0,103680.0,0.6172854]
[1750450011891,0.66681989,103690.0,103680.0,0.2564854]
[1750450013594,0.66681989,103690.0,103680.0,0.6172854]
[1750450014892,0.26991212,103690.0,103680.0,0.6172854]
[1750450015086,0.66681989,103690.0,103680.0,0.6172854]
[1750450015493,0.66681989,103690.0,103680.0,0.2564854]
[1750450016691,0.66681989,103690.0,103680.0,0.6172854]
[1750450018495,0.26991212,103690.0,103680.0,0.6172854]
[1750450018687,0.1928823,103690.0,103680.0,0.6172854]
[1750450018886,0.58979007,103690.0,103680.0,0.6172854]
[1750450020394,0.58979007,103690.0,103680.0,0.60787589]
[1750450021396,1.20574629,103700.0,103690.0,0.1928668]
[1750450021695,1.29346579,103700.0,103690.0,0.2853668]
[1750450022590,1.29546579,103700.0,103690.0,0.2853668]
[1750450022794,1.29546579,103700.0,103690.0,0.6461668]
[1750450023387,0.66978579,103700.0,103690.0,0.6461668]
[1750450023592,1.29542579,103700.0,103690.0,0.6461668]
[1750450024995,0.08002982,103700.0,103690.0,0.66353272]
[1750450025293,0.8214082,103700.0,103690.0,0.66353272]
[1750450026195,1.21831597,103700.0,103690.0,0.66353272]
[1750450026389,1.21831597,103700.0,103690.0,0.30273272]
[1750450026589,1.68670832,103700.0,103690.0,0.07826592]
[1750450026790,1.82393814,103700.0,103690.0,0.07866592]
[1750450026990,1.85503814,103700.0,103690.0,0.07866592]
[1750450027395,1.85503814,103700.0,103690.0,0.0004]
[1750450027697,1.85503814,103700.0,103670.0,0.7641596]
[1750450027698,0.1928854,103680.0,103670.0,0.7641596]
[1750450027997,0.64755448,103680.0,103670.0,0.7968596]
[1750450028599,0.25064671,103680.0,103670.0,0.7968596]
[1750450028799,0.2052594,103690.0,103680.0,0.1928854]
[1750450028995,0.79505207,103690.0,103680.0,0.5858854]
[1750450029200,0.89559993,103690.0,103680.0,0.6168854]
[1750450029589,0.1928668,103690.0,103680.0,1.01379317]
[1750450029794,0.58977457,103690.0,103680.0,0.6168854]
[1750450030493,0.58977457,103690.0,103680.0,0.2564854]
[1750450030896,0.69189902,103690.0,103680.0,0.24707575]
[1750450031113,0.69189902,103690.0,103680.0,0.24807575]
[1750450031290,0.69189902,103690.0,103680.0,0.24867575]
[1750450031486,0.69189902,103690.0,103680.0,0.24907575]
[1750450031692,0.69189902,103690.0,103680.0,0.60987575]
[1750450033801,0.69189902,103690.0,103680.0,0.24907575]
[1750450034194,1.05269902,103690.0,103680.0,0.05619035]
[1750450034394,1.11549902,103690.0,103680.0,0.0024]
[1750450034700,1.11549902,103690.0,103670.0,0.7456406]
[1750450034701,0.1928855,103680.0,103670.0,0.7456406]
[1750450034900,1.21507327,103680.0,103670.0,0.7456406]
[1750450035195,0.58979327,103680.0,103670.0,0.7456406]
[1750450035395,0.1928855,103680.0,103670.0,0.7448406]
[1750450035606,0.58979327,103680.0,103670.0,0.7452406]
[1750450035896,0.58979327,103680.0,103670.0,0.7462406]
[1750450036091,0.91694627,103690.0,103670.0,0.5533518]
[1750450036298,1.12795047,103690.0,103680.0,0.2246855]
[1750450036497,1.86395785,103690.0,103680.0,0.2558855]
[1750450037393,1.86595785,103690.0,103680.0,0.2558855]
[1750450037789,0.11280738,103690.0,103680.0,0.2558855]
[1750450037996,1.43765039,103700.0,103690.0,0.1928669]
[1750450038199,1.43765039,103700.0,103690.0,0.2871669]
[1750450038504,1.69260801,103700.0,103690.0,0.2871669]
[1750450039800,1.69360801,103700.0,103690.0,0.2871669]
[1750450039997,1.06840801,103700.0,103690.0,0.2871669]
[1750450040196,1.69356801,103700.0,103690.0,0.2871669]
[1750450041004,1.06840801,103700.0,103690.0,0.27775789]
[1750450041207,1.69348801,103700.0,103690.0,0.27775789]
[1750450041395,1.69448801,103700.0,103690.0,0.27775789]
[1750450041594,1.29758024,103700.0,103690.0,0.27775789]
[1750450041803,1.69448801,103700.0,103690.0,0.27775789]
[1750450041994,1.69448801,103700.0,103690.0,0.27815789]
[1750450043801,2.05528801,103700.0,103690.0,0.0947]
[1750450044804,2.15008801,103700.0,103690.0,0.0634]
[1750450045107,2.15008801,103700.0,103690.0,0.0638]
[1750450045897,2.15008801,103700.0,103690.0,0.0326]
[1750450046293,2.07305819,103700.0,103690.0,0.0004]
[1750450046706,0.1928669,103690.0,103680.0,0.06887]
[1750450046898,0.58977467,103690.0,103680.0,0.6233555]
[1750450047098,0.6998569,103690.0,103680.0,0.6233555]
[1750450047300,0.77697003,103690.0,103680.0,0.06967]
[1750450047496,0.77697003,103690.0,103680.0,0.2625555]
[1750450048002,0.77697003,103690.0,103680.0,0.2635555]
[1750450048304,0.77697003,103690.0,103680.0,0.6243555]
[1750450049511,0.77697003,103690.0,103680.0,0.6563555]
[1750450051005,0.77697003,103690.0,103680.0,0.64694603]
[1750450051814,1.40169003,103690.0,103680.0,0.64694603]
[1750450052309,1.6853769,103690.0,103680.0,0.09326053]
[1750450052506,1.86156545,103690.0,103680.0,0.0018]
[1750450052706,1.89186545,103690.0,103680.0,0.001]
[1750450053116,0.1928854,103680.0,103670.0,0.0314]
[1750450053308,1.51832323,103680.0,103670.0,0.0314]
[1750450053514,1.76558218,103680.0,103670.0,0.0322]
[1750450053709,1.36867441,103680.0,103670.0,0.0314]
[1750450054014,1.76558218,103680.0,103670.0,0.0318]
[1750450054405,0.97176664,103680.0,103670.0,0.0318]
[1750450054716,1.76558218,103680.0,103670.0,0.0318]
[1750450055215,0.97176664,103680.0,103670.0,0.0318]
[1750450055514,1.76558218,103680.0,103670.0,0.2247041]
[1750450055711,1.33837441,103680.0,103670.0,0.2566041]
[1750450056621,1.33837441,103680.0,103670.0,0.0637]
[1750450057712,1.33837441,103680.0,103670.0,0.2566041]
[1750450057907,1.30627441,103680.0,103670.0,0.2566041]
[1750450058718,1.27497441,103680.0,103670.0,0.2566041]
[1750450060714,1.27497441,103680.0,103670.0,0.0637]
[1750450061109,1.27497441,103680.0,103670.0,0.0542891]
[1750450061315,1.27497441,103680.0,103670.0,0.0004]
[1750450061612,1.33747441,103680.0,103670.0,0.0004]
[1750450061819,0.1929041,103670.0,103660.0,0.7618973]
[1750450062121,1.21425187,103670.0,103660.0,0.7626973]
[1750450063318,0.8173441,103670.0,103660.0,0.7626973]
[1750450064417,0.97950346,103680.0,103660.0,0.6023907]
[1750450064618,1.79676246,103680.0,103670.0,0.2243041]
[1750450064922,2.05327423,103680.0,103670.0,0.2549041]
[1750450066017,2.05527423,103680.0,103670.0,0.2549041]
[1750450067722,2.05327423,103680.0,103670.0,0.2549041]
[1750450068632,1.97615194,103680.0,103670.0,0.2549041]
[1750450068933,1.57924417,103680.0,103670.0,0.2549041]
[1750450069135,1.86433015,103680.0,103670.0,0.2549041]
[1750450069328,1.94145244,103680.0,103670.0,0.2549041]
[1750450069921,1.86433015,103680.0,103670.0,0.2549041]
[1750450071731,1.86433015,103680.0,103670.0,0.062]
[1750450072427,1.86433015,103680.0,103670.0,0.2549041]
[1750450072627,1.86433015,103680.0,103670.0,0.062]
[1750450073234,1.86433015,103680.0,103670.0,0.2549041]
[1750450073925,1.86433015,103680.0,103670.0,0.062]
[1750450075030,1.23997015,103680.0,103670.0,0.062]
[1750450075236,0.36644669,103690.0,103680.0,0.1928855]
[1750450075440,0.81157526,103690.0,103680.0,0.2865855]
[1750450075627,0.83517579,103690.0,103680.0,0.2865855]
[1750450076033,0.83517579,103690.0,103680.0,0.6473855]
[1750450076434,0.10072282,103690.0,103680.0,1.21176728]
[1750450076639,0.05780577,103690.0,103680.0,1.35642218]
[1750450077639,0.05780577,103690.0,103680.0,2.5915721]
[1750450077836,0.00790577,103700.0,103690.0,0.1928669]
[1750450078140,0.00790577,103700.0,103690.0,1.61576631]
[1750450078336,0.59766184,103700.0,103690.0,0.7357269]
[1750450078536,0.59766184,103700.0,103690.0,1.3595269]
[1750450079138,0.20075407,103700.0,103690.0,1.3595269]
[1750450079540,0.00790577,103700.0,103690.0,1.75643467]
[1750450079732,0.00990577,103700.0,103690.0,1.75643467]
[1750450079934,0.20375407,103700.0,103690.0,1.75643467]
[1750450080438,0.20375407,103700.0,103690.0,0.5855669]
[1750450080639,0.60066184,103700.0,103690.0,1.3594069]
[1750450081046,0.60066184,103700.0,103690.0,1.3919069]
[1750450081539,0.20375407,103700.0,103690.0,1.3919069]
[1750450082845,0.20375407,103700.0,103690.0,1.0311069]
[1750450083034,0.20375407,103700.0,103690.0,0.7682269]
[1750450083241,0.20375407,103700.0,103690.0,1.3917869]
[1750450083541,1.07216258,103700.0,103690.0,0.0319]
[1750450083743,0.1928668,103690.0,103680.0,0.0333]
[1750450083945,0.62027457,103690.0,103680.0,0.2261854]
[1750450084247,0.62027457,103690.0,103680.0,0.2253854]
[1750450084443,0.62027457,103690.0,103680.0,0.2257854]
[1750450085035,0.62027457,103690.0,103680.0,0.2433204]
[1750450085747,0.2233668,103690.0,103680.0,0.2433204]
[1750450086041,0.62027457,103690.0,103680.0,0.2433204]
[1750450086344,0.1928668,103690.0,103680.0,0.2433204]
[1750450086544,0.1928668,103690.0,103680.0,0.2754204]
[1750450086745,0.1928668,103690.0,103680.0,0.3059204]
[1750450087141,0.58977457,103690.0,103680.0,0.3059204]
[1750450087534,0.1928668,103690.0,103680.0,0.6667204]
[1750450087740,0.58977457,103690.0,103680.0,0.6667204]
[1750450088247,0.1928668,103690.0,103680.0,0.6667204]
[1750450088438,0.58977457,103690.0,103680.0,0.6667204]
[1750450089342,0.1928668,103690.0,103680.0,0.6667204]
[1750450091646,0.2258668,103690.0,103680.0,0.8164004]
[1750450092040,0.1928668,103690.0,103680.0,1.21330817]
[1750450094448,0.1928668,103690.0,103680.0,0.8164004]
[1750450096650,0.58977457,103690.0,103680.0,1.4393204]
[1750450096845,0.2254668,103690.0,103680.0,1.4393204]
[1750450097054,0.62237457,103690.0,103680.0,1.4393204]
[1750450097757,0.68010249,103690.0,103680.0,1.4393204]
[1750450097942,1.04090249,103690.0,103680.0,0.080935]
[1750450098142,0.1929041,103670.0,103660.0,0.7998477]
[1750450098449,0.58981187,103670.0,103660.0,1.1267477]
[1750450098652,0.62221187,103670.0,103660.0,1.1267477]
[1750450099053,0.62221187,103670.0,103660.0,1.4875477]
[1750450099254,0.62321187,103670.0,103660.0,1.4871477]
[1750450099455,0.2263041,103670.0,103660.0,1.4875477]
[1750450099656,0.2273041,103670.0,103660.0,1.4875477]
[1750450099859,0.2273041,103670.0,103660.0,1.5197477]
[1750450101953,0.2273041,103670.0,103660.0,0.7472677]
[1750450102160,0.1929227,103660.0,103650.0,0.5055006]
[1750450102354,0.62253047,103660.0,103650.0,0.9101034]
[1750450102564,0.62253047,103660.0,103650.0,1.5234634]
[1750450102756,0.62253047,103660.0,103650.0,1.5226634]
[1750450102960,0.62253047,103660.0,103650.0,0.7608234]
[1750450103158,0.62253047,103660.0,103650.0,1.2779152]
[1750450103359,0.71326768,103660.0,103650.0,0.6663552]
[1750450103556,0.82526822,103660.0,103650.0,0.5561413]
[1750450103760,0.82526822,103660.0,103650.0,0.5557413]
[1750450103960,0.82526822,103660.0,103650.0,0.5561413]
[1750450104758,0.82626822,103660.0,103650.0,0.5551413]
[1750450105358,0.82626822,103660.0,103650.0,0.5541413]
[1750450106061,0.82526822,103660.0,103650.0,0.5541413]
[1750450108656,0.82526822,103660.0,103650.0,0.3612]
[1750450108852,1.18606822,103660.0,103650.0,0.1933413]
[1750450109267,0.1929413,103650.0,103640.0,0.7434241]
[1750450109465,0.62094907,103650.0,103640.0,0.7122241]
[1750450109668,1.23334907,103650.0,103640.0,0.7130241]
[1750450109968,1.40165496,103650.0,103640.0,0.616546]
[1750450110168,1.46705496,103650.0,103640.0,0.4236]
[1750450110356,1.58062719,103650.0,103640.0,0.0008]
[1750450110671,2.39382781,103650.0,103640.0,0.0008]
[1750450110856,0.1929785,103630.0,103620.0,0.4242]
[1750450111055,1.25993467,103630.0,103620.0,0.0016]
[1750450111255,0.1929971,103620.0,103610.0,0.78450831]
[1750450111454,0.62280487,103620.0,103610.0,0.81530831]
[1750450111657,0.62280487,103620.0,103610.0,0.61657481]
[1750450112365,0.62280487,103620.0,103610.0,0.61697481]
[1750450112567,0.62380487,103620.0,103610.0,0.06316511]
[1750450112868,0.73473334,103620.0,103610.0,0.06316511]
[1750450113068,0.76523334,103620.0,103610.0,0.06316511]
[1750450113265,0.76523334,103620.0,103610.0,0.06276511]
[1750450113570,0.76523334,103620.0,103610.0,0.00136511]
[1750450113758,0.76523334,103620.0,103610.0,0.00096511]
[1750450113958,0.76523334,103620.0,103610.0,0.00136511]
[1750450114768,0.76523334,103620.0,103610.0,0.19438071]
[1750450115768,0.76523334,103620.0,103610.0,0.00136511]
[1750450118363,1.52679334,103620.0,103610.0,0.19438071]
[1750450118565,1.52679334,103620.0,103610.0,0.03396511]
[1750450120071,1.52679334,103620.0,103610.0,0.00136511]
[1750450123074,1.52679334,103620.0,103610.0,0.19438071]
[1750450123275,1.52667334,103620.0,103610.0,0.19438071]
[1750450123579,1.52663334,103620.0,103610.0,0.00136511]
[1750450123975,1.33363624,103620.0,103610.0,0.00136511]
[1750450124176,0.76523334,103620.0,103610.0,0.00136511]
[1750450124377,1.52663334,103620.0,103610.0,0.00136511]
[1750450124571,0.76523334,103620.0,103610.0,0.00136511]
[1750450124767,1.52663334,103620.0,103610.0,0.00136511]
[1750450124967,1.92354111,103620.0,103610.0,0.00136511]
[1750450125176,1.92354111,103620.0,103610.0,0.00096511]
[1750450125378,1.92354111,103620.0,103610.0,0.00136511]
[1750450126279,1.92354111,103620.0,103610.0,0.00096511]
[1750450126469,1.92354111,103620.0,103610.0,0.00136511]
[1750450129182,2.09134401,103620.0,103590.0,0.0326]
[1750450129380,0.1930529,103590.0,103580.0,0.71564464]
[1750450129581,0.58996067,103590.0,103580.0,0.71564464]
[1750450129981,0.58996067,103590.0,103580.0,0.66777684]
[1750450130180,0.58996067,103590.0,103580.0,0.47470744]
[1750450130881,0.58996067,103590.0,103580.0,0.66777894]
[1750450131076,0.58996067,103590.0,103580.0,0.47470744]
[1750450131277,0.58996067,103590.0,103580.0,0.11390744]
[1750450131484,0.58996067,103590.0,103580.0,0.11690744]
[1750450131683,0.59977887,103590.0,103580.0,0.30997894]
[1750450132186,0.58996067,103590.0,103580.0,0.29263689]
[1750450132385,0.58996067,103590.0,103580.0,0.29763689]
[1750450133286,0.66874368,103590.0,103580.0,0.29763689]
[1750450133786,0.66974368,103590.0,103580.0,0.29463689]
[1750450134284,0.66974368,103590.0,103580.0,0.28963689]
[1750450134484,0.27383591,103590.0,103580.0,0.28963689]
[1750450134689,0.27383591,103590.0,103580.0,1.04734466]
[1750450137492,0.27383591,103590.0,103580.0,0.65043689]
[1750450137790,0.27383591,103590.0,103580.0,1.04734466]
[1750450138389,0.27383591,103590.0,103580.0,0.65043689]
[1750450139379,0.27383591,103590.0,103580.0,1.04734466]
[1750450143788,0.08078301,103590.0,103580.0,1.04734466]
[1750450144092,0.27383591,103590.0,103580.0,0.65043689]
[1750450146290,0.67074368,103590.0,103580.0,0.65043689]
[1750450147089,0.27383591,103590.0,103580.0,0.65043689]
[1750450150990,0.70104368,103590.0,103580.0,0.65043689]
[1750450151195,0.75858301,103590.0,103580.0,0.61953689]
[1750450151496,0.78888301,103590.0,103580.0,0.61953689]
[1750450151693,1.6517168,103590.0,103580.0,0.00136539]
[1750450151899,1.67089658,103590.0,103580.0,0.00136539]
[1750450152102,0.1930715,103580.0,103570.0,0.1938901]
[1750450152396,1.04327927,103580.0,103570.0,0.1930901]
[1750450152698,1.14840529,103580.0,103570.0,0.1930901]
[1750450152993,1.14840529,103580.0,103570.0,0.1934901]
[1750450153298,1.2251244,103580.0,103570.0,0.0014]
[1750450154293,1.2251244,103580.0,103570.0,0.002]
[1750450154490,1.2251244,103580.0,103570.0,0.0024]
[1750450154691,0.1930902,103570.0,103560.0,0.0008]
[1750450154891,1.01569797,103570.0,103560.0,0.0008]
[1750450155093,1.12623551,103570.0,103560.0,0.0008]
[1750450155292,0.1931088,103560.0,103550.0,0.36176567]
[1750450155492,1.13963618,103560.0,103550.0,0.36256567]
[1750450155699,0.74272841,103560.0,103550.0,0.36176567]
[1750450155898,0.74272841,103560.0,103550.0,0.36216567]
[1750450156292,0.68491657,103560.0,103550.0,0.36216567]
[1750450157500,0.68491657,103560.0,103550.0,0.36416567]
[1750450159004,1.04571657,103560.0,103550.0,0.00336567]
[1750450159196,1.0554875,103560.0,103550.0,0.00336567]
[1750450159391,1.70280063,103560.0,103550.0,0.00336567]
[1750450159795,1.70280063,103560.0,103550.0,0.00296567]
[1750450160094,1.70280063,103560.0,103550.0,0.00336567]
[1750450160599,1.95282783,103560.0,103520.0,0.73262005]
[1750450160897,0.59007257,103530.0,103520.0,0.74542445]
[1750450161994,0.59007257,103530.0,103520.0,0.74642445]
[1750450162199,0.1931648,103530.0,103520.0,0.74642445]
[1750450162907,0.4360337,103540.0,103530.0,0.1931648]
[1750450163100,0.4360337,103540.0,103530.0,0.98207257]
[1750450163101,0.1931461,103540.0,103530.0,0.98207257]
[1750450163398,0.1931461,103540.0,103530.0,0.65217257]
[1750450163604,0.1931461,103540.0,103530.0,0.6160648]
[1750450164004,0.59205387,103540.0,103530.0,0.6160648]
[1750450164798,0.59305387,103540.0,103530.0,0.6160648]
[1750450167302,0.003,103540.0,103530.0,1.01297257]
[1750450168712,0.002,103540.0,103530.0,1.01297257]
[1750450169705,0.1931281,103550.0,103540.0,0.1931461]
[1750450170003,0.1931281,103550.0,103540.0,1.06237303]
[1750450170207,0.2413972,103560.0,103550.0,0.3379458]
[1750450170505,0.2896758,103560.0,103550.0,0.7607458]
[1750450171101,0.08010458,103560.0,103550.0,0.7607458]
[1750450171303,0.27322328,103560.0,103550.0,0.7607458]
[1750450171504,0.22494468,103560.0,103550.0,0.7607458]
[1750450171704,0.1931187,103560.0,103550.0,0.7607458]
[1750450172104,0.76684027,103570.0,103560.0,0.1931088]
[1750450172306,0.76684027,103570.0,103560.0,0.2867088]
[1750450173310,0.39690777,103570.0,103560.0,0.6475088]
[1750450173516,0.59299787,103570.0,103560.0,0.6475088]
[1750450173713,0.39990777,103570.0,103560.0,0.6475088]
[1750450173912,0.003,103570.0,103560.0,0.66488386]
[1750450175713,0.1960902,103570.0,103560.0,0.66488386]
[1750450176218,0.59299797,103570.0,103560.0,0.66488386]
[1750450177218,0.003,103570.0,103560.0,0.66488386]
[1750450177414,0.1960902,103570.0,103560.0,0.66488386]
[1750450178723,0.1960902,103570.0,103560.0,1.06179163]
[1750450178724,0.003,103570.0,103560.0,1.06179163]
[1750450180621,0.001,103570.0,103560.0,1.25490363]
[1750450181025,0.68651707,103580.0,103570.0,0.1930902]
[1750450181226,0.4886059,103580.0,103570.0,1.2273302]
[1750450181525,0.6816854,103580.0,103570.0,1.2273302]
[1750450181922,0.28477763,103580.0,103570.0,1.2273302]
[1750450182829,0.28677763,103580.0,103570.0,1.2273302]
[1750450183429,0.28477763,103580.0,103570.0,1.2273302]
[1750450183633,0.1930795,103580.0,103570.0,1.2273302]
[1750450184329,0.58998727,103580.0,103570.0,1.2273302]
[1750450186035,0.39690777,103580.0,103570.0,1.2273302]
[1750450186429,0.83517823,103590.0,103580.0,0.1930715]
[1750450186635,0.43827046,103590.0,103580.0,0.6171715]
[1750450186836,0.93635392,103590.0,103580.0,0.6171715]
[1750450187636,0.69502112,103590.0,103580.0,0.6171715]
[1750450187837,0.88907402,103590.0,103580.0,0.6171715]
[1750450188527,0.89107402,103590.0,103580.0,0.6171715]
[1750450188928,0.89107402,103590.0,103580.0,0.2563715]
[1750450189230,0.89107402,103590.0,103580.0,0.6171715]
[1750450191531,0.1930715,103580.0,103570.0,1.3396224]
[1750450191732,0.1930715,103580.0,103570.0,1.4024224]
[1750450191931,0.62087927,103580.0,103570.0,1.4024224]
[1750450192436,0.62087927,103580.0,103570.0,0.6649425]
[1750450192740,0.65227927,103580.0,103570.0,1.2755425]
[1750450193530,0.70983392,103580.0,103570.0,1.2755425]
[1750450193934,0.71083392,103580.0,103570.0,0.6653425]
[1750450194444,0.71098121,103580.0,103570.0,0.6653425]
[1750450194645,0.71098121,103580.0,103570.0,0.3612]
[1750450194943,0.1930902,103570.0,103560.0,1.01240956]
[1750450195138,0.67782411,103570.0,103560.0,1.04550956]
[1750450195439,0.67782411,103570.0,103560.0,1.04510956]
[1750450195837,0.67782411,103570.0,103560.0,1.65518956]
[1750450196040,0.70992411,103570.0,103560.0,1.65518956]
[1750450196345,0.65219797,103570.0,103560.0,1.65518956]
[1750450196843,0.65219797,103570.0,103560.0,1.35968956]
[1750450197540,0.45910777,103570.0,103560.0,1.35968956]
[1750450197741,0.42700777,103570.0,103560.0,1.35968956]
[1750450198040,0.62009787,103570.0,103560.0,1.39098956]
[1750450198540,0.67782401,103570.0,103560.0,1.39098956]
[1750450201149,0.67782401,103570.0,103560.0,1.34271286]
[1750450201343,0.67782401,103570.0,103560.0,1.31141286]
[1750450203347,0.67782401,103570.0,103560.0,1.34351286]
[1750450204352,0.28091624,103570.0,103560.0,1.34351286]
[1750450204656,0.25081624,103570.0,103560.0,1.34351286]
[1750450205340,0.64772401,103570.0,103560.0,1.34351286]
[1750450205543,0.68042401,103570.0,103560.0,1.34351286]
[1750450205745,0.68042401,103570.0,103560.0,0.6508578]
[1750450205945,0.71062401,103570.0,103560.0,0.3612]
[1750450206152,0.72052974,103570.0,103560.0,0.5539088]
[1750450206346,0.72052974,103570.0,103560.0,0.5543088]
[1750450207247,0.72052974,103570.0,103560.0,0.5876088]
[1750450207554,0.68042401,103570.0,103560.0,0.5876088]
[1750450207755,0.68042401,103570.0,103560.0,0.6182088]
[1750450208151,0.68042401,103570.0,103560.0,0.5876088]
[1750450208551,0.71062401,103570.0,103560.0,0.5876088]
[1750450211345,0.71062401,103570.0,103560.0,0.0337]
[1750450211547,0.193146,103540.0,103530.0,0.2446418]
[1750450211748,1.17641223,103540.0,103530.0,0.2897327]
[1750450211956,0.77950446,103540.0,103530.0,0.2901327]
[1750450212149,0.77950446,103540.0,103530.0,0.3205327]
[1750450212150,0.97265046,103540.0,103530.0,0.3205327]
[1750450213458,1.37055823,103540.0,103530.0,0.3205327]
[1750450213652,1.31465377,103540.0,103530.0,0.3205327]
[1750450213849,1.37255823,103540.0,103530.0,0.3205327]
[1750450214553,1.31465377,103540.0,103530.0,0.3205327]
[1750450216656,1.31465377,103540.0,103530.0,0.3819327]
[1750450218462,1.16139656,103540.0,103530.0,0.3819327]
[1750450220764,0.003,103540.0,103530.0,1.58280847]
[1750450221063,0.003,103540.0,103530.0,2.19224847]
[1750450221263,0.003,103540.0,103530.0,1.94224847]
[1750450221863,0.196146,103540.0,103530.0,1.94224847]
[1750450222061,0.196146,103540.0,103530.0,1.74908047]
[1750450222562,0.195146,103540.0,103530.0,1.74908047]
[1750450223468,0.6987946,103550.0,103540.0,0.193146]
[1750450223764,0.65051,103550.0,103540.0,0.403926]
[1750450224764,1.04841777,103550.0,103540.0,0.403926]
[1750450224968,1.05041777,103550.0,103540.0,0.403926]
[1750450228673,1.11341777,103550.0,103540.0,0.403926]
[1750450234673,1.17132223,103550.0,103540.0,0.403926]
[1750450237179,1.17132223,103550.0,103540.0,0.371726]
[1750450237378,1.20192223,103550.0,103540.0,0.371726]
[1750450237779,1.20192223,103550.0,103540.0,0.340826]
[1750450238279,1.20192223,103550.0,103540.0,0.949706]
[1750450238481,1.20192223,103550.0,103540.0,0.340826]
[1750450238668,1.14401777,103550.0,103540.0,0.949706]
[1750450239182,1.14401777,103550.0,103540.0,0.340826]
[1750450239377,1.14401777,103550.0,103540.0,0.949666]
[1750450239981,0.65351,103550.0,103540.0,0.340826]
[1750450240176,1.05041777,103550.0,103540.0,1.013526]
[1750450240578,1.05041777,103550.0,103540.0,0.404726]
[1750450240770,1.05041777,103550.0,103540.0,1.013526]
[1750450241184,1.05041777,103550.0,103540.0,0.404726]
[1750450241483,1.05041777,103550.0,103540.0,1.013486]
[1750450242082,0.95385047,103550.0,103540.0,1.013486]
[1750450242981,0.63414865,103550.0,103540.0,1.013486]
[1750450244186,1.06375642,103550.0,103540.0,1.013486]
[1750450245085,1.03105642,103550.0,103540.0,1.013486]
[1750450245285,1.03105642,103550.0,103540.0,0.404726]
[1750450245480,0.63414865,103550.0,103540.0,1.013366]
[1750450245690,0.95385047,103550.0,103540.0,1.013366]
[1750450246383,1.07586466,103550.0,103540.0,1.013366]
[1750450246887,0.67895689,103550.0,103540.0,1.013366]
[1750450247081,1.07586466,103550.0,103540.0,1.013366]
[1750450247688,1.01795047,103550.0,103540.0,1.013366]
[1750450252090,1.01795047,103550.0,103540.0,0.981866]
[1750450252289,1.01795047,103550.0,103540.0,0.949466]
[1750450254992,1.01795047,103550.0,103540.0,1.013066]
[1750450255195,0.3638,103550.0,103540.0,1.013066]
[1750450255392,0.61489099,103550.0,103540.0,1.013066]
[1750450256190,0.42176349,103550.0,103540.0,1.40997377]
[1750450256491,0.61489079,103550.0,103540.0,1.40997377]
[1750450256693,0.42176349,103550.0,103540.0,1.40997377]
[1750450256891,0.06096083,103550.0,103540.0,1.77077377]
[1750450257085,0.06096083,103550.0,103540.0,1.40997377]
[1750450257395,0.003,103550.0,103540.0,2.12077377]
[1750450257896,0.001,103550.0,103540.0,2.12077377]
[1750450258098,0.001,103550.0,103540.0,2.12377377]
[1750450258488,0.001,103550.0,103540.0,2.12329377]
[1750450259193,0.46009143,103570.0,103560.0,0.1931087]
[1750450259392,0.46009143,103570.0,103560.0,0.9483887]
[1750450259588,0.36354233,103570.0,103560.0,1.0113887]
[1750450259798,0.25106813,103570.0,103560.0,1.42559916]
[1750450259992,0.05796083,103570.0,103560.0,1.42559916]
[1750450260190,0.25105083,103570.0,103560.0,1.42559916]
[1750450260994,0.25105083,103570.0,103560.0,1.42659916]
[1750450261190,0.05796083,103570.0,103560.0,1.02969139]
[1750450262601,0.05796083,103570.0,103560.0,1.03952331]
[1750450264101,1.2009965,103580.0,103570.0,0.1930901]
[1750450265599,1.2019965,103580.0,103570.0,0.1930901]
[1750450266299,1.14403567,103580.0,103570.0,0.1930901]
[1750450266601,1.14603567,103580.0,103570.0,0.1930901]
[1750450266899,1.20381949,103580.0,103570.0,0.1930901]
[1750450271908,1.20381949,103580.0,103570.0,0.9471701]
[1750450273710,0.80691172,103580.0,103570.0,0.9471701]
[1750450273910,1.20381949,103580.0,103570.0,0.9471701]
[1750450276315,1.22324162,103580.0,103570.0,0.9471701]
[1750450276511,0.82633385,103580.0,103570.0,0.1930901]
[1750450276709,1.22324162,103580.0,103570.0,0.1930901]
[1750450276906,1.22324162,103580.0,103570.0,0.3396101]
[1750450278111,0.4595,103580.0,103570.0,0.3396101]
[1750450278319,0.69727745,103580.0,103570.0,0.3396101]
[1750450278523,0.50420595,103580.0,103570.0,0.3723101]
[1750450278715,0.90111372,103580.0,103570.0,0.3723101]
[1750450278916,1.01697927,103580.0,103570.0,0.3723101]
[1750450279215,0.82290777,103580.0,103570.0,0.3723101]
[1750450279417,1.01597927,103580.0,103570.0,0.4271911]
[1750450279719,1.01397927,103580.0,103570.0,0.3638911]
[1750450279921,1.01397927,103580.0,103570.0,0.3311911]
[1750450281220,1.01597927,103580.0,103570.0,0.3301911]
[1750450281420,0.426,103580.0,103570.0,0.3301911]
[1750450281616,0.033,103580.0,103570.0,1.08789887]
[1750450281820,0.033,103580.0,103570.0,1.15249887]
[1750450282324,0.003,103580.0,103570.0,0.7555911]
[1750450283114,0.1960715,103580.0,103570.0,0.7555911]
[1750450284120,0.1960715,103580.0,103570.0,0.3947911]
[1750450284520,0.27327745,103580.0,103570.0,0.3947911]
[1750450284721,0.30567745,103580.0,103570.0,0.3947911]
[1750450284917,0.73498522,103580.0,103570.0,0.21112]
[1750450285123,1.09578522,103580.0,103570.0,0.9467301]
[1750450286324,1.01857927,103580.0,103570.0,0.9467301]
[1750450286524,1.09578522,103580.0,103570.0,0.9467301]
[1750450286720,0.69887745,103580.0,103570.0,0.9467301]
[1750450286925,1.09578522,103580.0,103570.0,0.9467301]
[1750450288526,0.69887745,103580.0,103570.0,0.9467301]
[1750450288727,1.09578522,103580.0,103570.0,1.0126301]
[1750450289728,1.09578522,103580.0,103570.0,0.2589901]
[1750450289927,1.01857927,103580.0,103570.0,1.0124701]
[1750450290422,0.98617927,103580.0,103570.0,0.2589901]
[1750450290627,0.98617927,103580.0,103570.0,1.0124301]